bitfinex-derivatives/quotes_BNBF0:USTF0_20251203
["timestamp","ask_amount","ask_price","bid_price","bid_amount"]
[1764729529034,0.73233711,887.05,885.3,2.78018106]
[1764729529238,0.73233711,887.04,885.3,2.78018106]
[1764729529541,0.73233711,887.03,885.3,2.78018106]
[1764729529735,0.73233711,887.02,885.3,2.78018106]
[1764729529938,0.73233711,887.01,885.3,2.78018106]
[1764729530135,0.73233711,887.0,885.32,2.78018106]
[1764729530435,0.73233711,886.99,885.32,2.78018106]
[1764729530637,0.73233711,886.98,885.33,2.78018106]
[1764729530836,0.73233711,886.97,885.33,2.78018106]
[1764729531035,0.73233711,886.96,885.33,2.78018106]
[1764729531235,0.73233711,886.95,885.33,2.78018106]
[1764729531535,0.73233711,886.94,885.33,2.78018106]
[1764729531839,0.73233711,886.93,885.36,2.78018106]
[1764729532038,0.73233711,886.92,885.36,2.78018106]
[1764729532238,0.73233711,886.91,885.36,2.78018106]
[1764729532435,0.73233711,886.9,885.36,2.78018106]
[1764729532640,0.8405437,887.19,885.36,2.78018106]
[1764729532940,0.7241812,887.18,885.36,2.78018106]
[1764729533141,0.7241812,887.17,885.36,2.78018106]
[1764729533341,0.7241812,887.16,885.37,2.78018106]
[1764729533638,0.7241812,887.15,885.37,2.78018106]
[1764729533841,0.7241812,887.14,885.37,2.78018106]
[1764729534037,0.7241812,887.13,885.37,2.78018106]
[1764729534240,0.7241812,887.12,885.45,2.78018106]
[1764729534438,0.7241812,887.11,885.45,2.78018106]
[1764729534640,0.7241812,887.1,885.45,2.78018106]
[1764729534838,0.7241812,887.09,885.45,2.78018106]
[1764729535138,0.7241812,887.08,885.45,2.78018106]
[1764729535336,0.7241812,887.07,885.46,2.78018106]
[1764729535638,0.7241812,887.06,885.46,2.78018106]
[1764729535837,0.7241812,887.05,885.46,2.78018106]
[1764729536138,0.7241812,887.04,885.46,2.78018106]
[1764729536341,0.7241812,887.03,885.45,2.78018106]
[1764729536538,0.7241812,887.02,885.45,2.78018106]
[1764729536739,0.7241812,887.01,885.45,2.78018106]
[1764729536941,0.7241812,887.0,885.45,2.78018106]
[1764729537140,0.7241812,886.99,885.45,2.78018106]
[1764729537340,0.7241812,886.98,885.45,2.78018106]
[1764729537541,0.8405437,887.26,885.45,2.78018106]
[1764729537740,0.72421719,887.25,885.45,2.78018106]
[1764729537942,0.72421719,887.24,885.45,2.78018106]
[1764729538144,0.72421719,887.23,885.45,2.78018106]
[1764729538344,0.72421719,887.22,885.45,2.78018106]
[1764729538549,0.72421719,887.21,885.45,2.78018106]
[1764729538850,0.72421719,887.2,885.45,2.78018106]
[1764729539048,0.72421719,887.19,885.45,2.78018106]
[1764729539247,0.72421719,887.18,885.45,2.78018106]
[1764729539451,0.72421719,887.17,885.51,2.78018106]
[1764729539647,0.72421719,887.16,885.51,2.78018106]
[1764729539947,0.72421719,887.15,885.55,2.78018106]
[1764729540150,0.72421719,887.14,885.55,2.78018106]
[1764729540349,0.72421719,887.13,885.55,2.78018106]
[1764729540552,0.72421719,887.12,885.55,2.78018106]
[1764729540750,0.72421719,887.11,885.55,2.78018106]
[1764729540954,0.72421719,887.1,885.55,2.78018106]
[1764729541253,0.72421719,887.09,885.55,2.78018106]
[1764729541451,0.72421719,887.08,885.55,2.78018106]
[1764729541654,0.72421719,887.07,885.55,2.78018106]
[1764729541956,5.88305476,887.27,885.55,2.78018106]
[1764729542157,0.7096332,887.26,885.55,2.78018106]
[1764729542353,0.7096332,887.25,885.55,2.78018106]
[1764729542556,0.7096332,887.24,885.55,2.78018106]
[1764729542855,0.7096332,887.23,885.55,2.78018106]
[1764729543059,0.7096332,887.22,885.49,2.78018106]
[1764729543259,0.7096332,887.21,885.49,2.78018106]
[1764729543559,0.7096332,887.2,885.49,2.78018106]
[1764729543761,0.7096332,887.19,885.48,2.78018106]
[1764729543960,0.7096332,887.18,885.48,2.78018106]
[1764729544161,0.7096332,887.17,885.46,2.78018106]
[1764729544358,0.7096332,887.16,885.46,2.78018106]
[1764729544556,0.7096332,887.15,885.46,2.78018106]
[1764729544759,0.7096332,887.14,885.45,2.78018106]
[1764729545056,0.7096332,887.13,885.45,2.78018106]
[1764729545256,0.7096332,887.12,885.46,2.78018106]
[1764729545459,0.7096332,887.11,885.46,2.78018106]
[1764729545660,0.7096332,887.1,885.46,2.78018106]
[1764729545859,0.7096332,887.09,885.46,2.78018106]
[1764729546060,0.7096332,887.08,885.46,2.78018106]
[1764729546361,0.7096332,887.07,885.46,2.78018106]
[1764729546661,0.7096332,887.06,885.46,2.78018106]
[1764729546858,0.7096332,887.05,885.46,2.78018106]
[1764729547062,0.7096332,887.04,885.46,2.78018106]
[1764729547262,0.7096332,887.03,885.47,2.78018106]
[1764729547458,0.7096332,887.02,885.47,2.78018106]
[1764729547658,0.7096332,887.01,885.47,2.78018106]
[1764729547862,0.7096332,887.0,885.47,2.78018106]
[1764729548057,0.7096332,886.99,885.47,2.78018106]
[1764729548259,0.7096332,886.98,885.47,2.78018106]
[1764729548461,0.7096332,886.97,885.48,2.78018106]
[1764729548761,0.7096332,886.96,885.48,2.78018106]
[1764729548959,0.7096332,886.95,885.48,2.78018106]
[1764729549165,0.7096332,886.94,885.48,2.78018106]
[1764729549362,0.7096332,886.93,885.48,2.78018106]
[1764729549563,0.7096332,886.92,885.48,2.78018106]
[1764729549764,0.7096332,886.91,885.48,2.78018106]
[1764729549960,0.7096332,886.9,885.47,2.78018106]
[1764729550165,0.7096332,886.89,885.47,2.78018106]
[1764729550366,0.8405437,887.17,885.47,2.78018106]
[1764729550565,0.71057874,887.16,885.47,2.78018106]
[1764729550762,0.71057874,887.15,885.47,2.78018106]
[1764729551062,0.71057874,887.14,885.44,2.78018106]
[1764729551363,0.71057874,887.13,885.46,2.78018106]
[1764729551566,0.71057874,887.12,885.46,2.78018106]
[1764729551767,0.71057874,887.11,885.46,2.78018106]
[1764729552065,0.71057874,887.1,885.46,2.78018106]
[1764729552263,0.71057874,887.09,885.46,2.78018106]
[1764729552568,0.71057874,887.08,885.46,2.78018106]
[1764729552768,0.71057874,887.07,885.46,2.78018106]
[1764729553065,0.71057874,887.06,885.46,2.78018106]
[1764729553267,0.71057874,887.05,885.46,2.78018106]
[1764729553564,0.71057874,887.04,885.44,2.78018106]
[1764729553767,0.71057874,887.03,885.44,2.78018106]
[1764729553968,0.71057874,887.02,885.44,2.78018106]
[1764729554265,0.71057874,887.01,885.44,2.78018106]
[1764729554467,0.71057874,887.0,885.44,2.78018106]
[1764729554669,0.71057874,886.99,885.44,2.78018106]
[1764729554866,0.71057874,886.98,885.44,2.78018106]
[1764729555067,0.8405437,887.13,885.44,2.78018106]
[1764729555068,0.71057874,886.97,885.44,2.78018106]
[1764729555265,0.71057874,886.96,885.44,2.78018106]
[1764729555469,0.71057874,886.95,885.44,2.78018106]
[1764729555770,0.71057874,886.94,885.44,2.78018106]
[1764729556065,0.71057874,886.93,885.47,2.78018106]
[1764729556269,0.71057874,886.92,885.47,2.78018106]
[1764729556469,0.71057874,886.91,885.47,2.78018106]
[1764729556671,0.71057874,886.9,885.47,2.78018106]
[1764729556864,0.71057874,886.89,885.47,2.78018106]
[1764729557069,0.71057874,886.88,885.47,2.78018106]
[1764729557270,0.71077213,886.87,885.47,2.78018106]
[1764729557567,0.71078089,886.86,885.19,2.78018106]
[1764729557774,0.71078089,886.85,885.19,2.78018106]
[1764729558070,0.71078089,886.84,885.18,2.78018106]
[1764729558270,0.8405437,886.73,885.18,2.78018106]
[1764729558468,0.71078089,886.72,885.18,2.78018106]
[1764729558674,0.71078089,886.71,885.02,2.78018106]
[1764729558870,0.71078089,886.7,885.02,2.78018106]
[1764729559074,0.71078089,886.69,885.02,2.78018106]
[1764729559271,0.71078089,886.68,885.02,2.78018106]
[1764729559474,0.71078089,886.67,885.02,2.78018106]
[1764729559674,0.71078089,886.66,885.04,2.78018106]
[1764729559875,0.71078089,886.65,885.04,2.78018106]
[1764729560175,0.71078089,886.64,885.01,2.78018106]
[1764729560378,0.71078089,886.63,885.01,2.78018106]
[1764729560573,0.71078089,886.62,885.04,2.78018106]
[1764729560874,0.71078089,886.61,885.04,2.78018106]
[1764729561174,0.71078089,886.6,885.04,2.78018106]
[1764729561374,0.71078089,886.59,885.04,2.78018106]
[1764729561671,0.71078089,886.58,885.0,2.78018106]
[1764729561874,0.71078089,886.57,885.0,2.78018106]
[1764729562174,0.71078089,886.56,885.0,2.78018106]
[1764729562474,0.71078089,886.55,885.0,2.78018106]
[1764729562676,0.71078089,886.54,884.99,2.78018106]
[1764729562871,0.71078089,886.53,884.99,2.78018106]
[1764729563073,0.71078089,886.52,884.99,2.78018106]
[1764729563271,0.71078089,886.51,884.97,2.78018106]
[1764729563472,0.8405437,886.82,884.97,2.78018106]
[1764729563672,0.72684799,886.81,884.97,2.78018106]
[1764729563976,0.72684799,886.8,885.0,2.78018106]
[1764729564178,0.72684799,886.79,885.0,2.78018106]
[1764729564369,5.88305476,887.27,884.92,0.19632677]
[1764729564370,0.72684799,886.78,884.99,2.78018106]
[1764729564675,0.72684799,886.77,884.99,2.78018106]
[1764729564872,0.72684799,886.76,885.0,2.78018106]
[1764729565072,0.72684799,886.75,885.0,2.78018106]
[1764729565276,0.72684799,886.74,884.99,2.78018106]
[1764729565476,0.8405437,886.85,884.99,2.78018106]
[1764729565477,0.72684799,886.73,884.99,2.78018106]
[1764729565674,0.72684799,886.72,884.99,2.78018106]
[1764729565872,0.72684799,886.71,884.99,2.78018106]
[1764729566072,0.72684799,886.7,884.99,2.78018106]
[1764729566278,0.72684799,886.69,884.99,2.78018106]
[1764729566472,0.72684799,886.69,884.92,0.19632677]
[1764729566473,0.72684799,886.68,885.07,2.78018106]
[1764729566674,0.72684799,886.67,885.07,2.78018106]
[1764729566977,0.8405437,886.95,885.07,2.78018106]
[1764729567177,0.72237066,886.94,885.07,2.78018106]
[1764729567478,0.72237066,886.93,885.06,2.78018106]
[1764729567679,0.72237066,886.92,885.06,2.78018106]
[1764729567877,0.72237066,886.91,885.06,2.78018106]
[1764729568074,0.72237066,886.9,885.06,2.78018106]
[1764729568274,0.72237066,886.89,885.06,2.78018106]
[1764729568578,0.72237066,886.88,885.05,2.78018106]
[1764729568778,0.72237066,886.87,885.05,2.78018106]
[1764729568977,0.72237066,886.86,885.05,2.78018106]
[1764729569175,0.72237066,886.85,885.05,2.78018106]
[1764729569377,0.72237066,886.84,885.05,2.78018106]
[1764729569678,0.72237066,886.83,885.04,2.78018106]
[1764729569878,0.72237066,886.82,885.04,2.78018106]
[1764729570178,0.72237066,886.81,885.04,2.78018106]
[1764729570378,0.72237066,886.8,885.04,2.78018106]
[1764729570679,0.72237066,886.79,885.03,2.78018106]
[1764729570974,0.72237066,886.78,885.03,2.78018106]
[1764729571177,0.72237066,886.77,885.03,2.78018106]
[1764729571374,0.72237066,886.76,885.03,2.78018106]
[1764729571579,0.72237066,886.75,885.02,2.78018106]
[1764729571779,0.72237066,886.74,885.02,2.78018106]
[1764729571977,0.72237066,886.73,885.02,2.78018106]
[1764729572178,0.72237066,886.72,884.93,2.78018106]
[1764729572374,0.72237066,886.71,884.93,2.78018106]
[1764729572577,0.72237066,886.7,884.92,2.78018106]
[1764729572776,0.72237066,886.69,884.92,2.78018106]
[1764729573075,0.72237066,886.68,884.92,2.78018106]
[1764729573279,0.72237066,886.67,884.92,2.78018106]
[1764729573575,0.72237066,886.66,884.92,2.78018106]
[1764729573878,0.72237066,886.65,884.92,2.78018106]
[1764729574072,0.72237066,886.64,884.89,2.78018106]
[1764729574275,0.72237066,886.63,884.89,2.78018106]
[1764729574475,0.72237066,886.62,884.89,2.78018106]
[1764729574680,5.92926329,886.86,884.88,2.78018106]
[1764729574881,0.72132743,886.85,884.88,2.78018106]
[1764729575078,0.72132743,886.84,884.89,2.78018106]
[1764729575278,0.72132743,886.83,884.89,2.78018106]
[1764729575478,0.72132743,886.82,884.89,2.78018106]
[1764729575677,0.72132743,886.81,884.88,2.78018106]
[1764729575875,0.72132743,886.8,884.88,2.78018106]
[1764729576079,0.72132743,886.79,884.88,2.78018106]
[1764729576280,0.72132743,886.78,884.79,0.19634394]
[1764729576476,0.72132743,886.77,884.79,0.19634394]
[1764729576676,0.72132743,886.76,884.79,0.19634394]
[1764729576880,0.72132743,886.75,884.79,0.19634394]
[1764729577081,0.72132743,886.74,884.79,0.19634394]
[1764729577282,0.72132743,886.73,884.79,0.19634394]
[1764729577483,0.72132743,886.72,884.79,0.19634394]
[1764729577786,0.72132743,886.71,884.79,0.19634394]
[1764729577981,0.72132743,886.7,884.79,0.19634394]
[1764729578182,0.72132743,886.69,884.79,0.19634394]
[1764729578379,0.72132743,886.68,884.79,0.19634394]
[1764729578577,0.72132743,886.67,884.79,0.19634394]
[1764729578783,0.72132743,886.66,884.79,0.19634394]
[1764729579082,0.72132743,886.65,884.79,0.19634394]
[1764729579282,0.72132743,886.64,884.79,0.19634394]
[1764729579481,0.72132743,886.63,884.79,0.19634394]
[1764729579683,0.72132743,886.62,884.79,0.19634394]
[1764729579880,0.72132743,886.61,884.79,0.19634394]
[1764729580082,0.72132743,886.6,884.79,0.19634394]
[1764729580284,0.72132743,886.59,884.79,0.19634394]
[1764729580485,0.72132743,886.58,884.79,0.19634394]
[1764729580684,6.76980699,886.86,884.79,0.19634394]
[1764729580882,0.7205344,886.85,884.79,0.19634394]
[1764729581085,0.7205344,886.84,884.79,0.19634394]
[1764729581284,0.7205344,886.83,884.79,0.19634394]
[1764729581485,0.7205344,886.82,884.79,0.19634394]
[1764729581684,0.7205344,886.81,884.79,0.19634394]
[1764729581983,0.7205344,886.8,884.79,0.19634394]
[1764729582184,0.7205344,886.79,884.79,0.19634394]
[1764729582385,0.7205344,886.78,884.79,0.19634394]
[1764729582583,0.7205344,886.77,884.79,0.19634394]
[1764729582785,0.7205344,886.76,884.79,0.19634394]
[1764729583088,0.7205344,886.75,884.79,0.19634394]
[1764729583287,0.7205344,886.74,884.79,0.19634394]
[1764729583485,0.7205344,886.73,884.79,0.19634394]
[1764729583686,0.7205344,886.72,884.79,0.19634394]
[1764729583884,0.7205344,886.71,884.79,0.19634394]
[1764729584085,0.7205344,886.7,884.79,0.19634394]
[1764729584286,0.7205344,886.69,884.79,0.19634394]
[1764729584484,0.7205344,886.68,884.79,0.19634394]
[1764729584689,0.7205344,886.67,884.79,0.19634394]
[1764729584997,0.7205344,886.66,884.79,0.19634394]
[1764729585186,0.7205344,886.65,884.79,0.19634394]
[1764729585385,0.7205344,886.64,884.79,0.19634394]
[1764729585693,0.7205344,886.63,884.79,0.19634394]
[1764729585890,0.7205344,886.62,884.79,0.19634394]
[1764729586087,5.92926329,886.86,884.79,0.19634394]
[1764729586290,0.72017715,886.85,884.79,0.19634394]
[1764729586487,0.72017715,886.84,884.79,0.19634394]
[1764729586792,0.72017715,886.83,884.79,0.19634394]
[1764729586990,0.72017715,886.82,884.79,0.19634394]
[1764729587293,0.72017715,886.81,884.79,0.19634394]
[1764729587489,0.72017715,886.8,884.79,0.19634394]
[1764729587696,0.72017715,886.79,884.79,0.19634394]
[1764729587891,0.72017715,886.78,884.79,0.19634394]
[1764729588091,0.72017715,886.77,884.79,0.19634394]
[1764729588394,0.72017715,886.76,884.79,0.19634394]
[1764729588594,0.72017715,886.75,884.79,0.19634394]
[1764729588791,0.72017715,886.74,884.79,0.19634394]
[1764729588988,5.92926329,886.86,884.79,0.19634394]
[1764729589192,0.72003434,886.85,884.9,2.78018106]
[1764729589392,0.72003434,886.84,884.9,2.78018106]
[1764729589591,0.72003434,886.83,884.9,2.78018106]
[1764729589791,5.92926329,886.86,884.95,2.78018106]
[1764729589990,0.72004685,886.85,884.95,2.78018106]
[1764729590189,0.72004685,886.84,884.95,2.78018106]
[1764729590394,0.72004685,886.83,884.95,2.78018106]
[1764729590695,5.92926329,886.86,884.96,2.78018106]
[1764729590994,0.72010055,886.85,884.96,2.78018106]
[1764729591194,0.72010055,886.84,884.96,2.78018106]
[1764729591394,0.72010055,886.83,884.96,2.78018106]
[1764729591590,5.92926329,886.86,884.96,2.78018106]
[1764729591795,0.71731388,886.85,884.97,2.78018106]
[1764729591995,0.71731388,886.84,884.97,2.78018106]
[1764729592191,0.71731388,886.83,884.97,2.78018106]
[1764729592395,5.92926329,886.86,884.97,2.78018106]
[1764729592692,0.7173646,886.85,884.97,2.78018106]
[1764729592893,0.7173646,886.84,884.97,2.78018106]
[1764729593194,0.7173646,886.83,884.97,2.78018106]
[1764729593392,5.92926329,886.86,884.97,2.78018106]
[1764729593590,0.71741371,886.85,884.97,2.78018106]
[1764729593792,0.71741371,886.84,884.97,2.78018106]
[1764729593991,0.71741371,886.83,884.97,2.78018106]
[1764729594191,5.92926329,886.86,884.97,2.78018106]
[1764729594390,0.71741351,886.85,884.98,2.78018106]
[1764729594595,0.71741351,886.84,884.98,2.78018106]
[1764729594793,0.71741351,886.83,884.98,2.78018106]
[1764729594996,0.71741351,886.82,884.98,2.78018106]
[1764729595199,5.92926329,886.86,884.98,2.78018106]
[1764729595497,0.71755642,886.85,884.98,2.78018106]
[1764729595697,0.71755642,886.84,884.98,2.78018106]
[1764729595899,0.71755642,886.83,884.98,2.78018106]
[1764729596098,0.71755642,886.82,884.98,2.78018106]
[1764729596398,0.71755642,886.82,884.79,0.19634394]
[1764729596399,0.71755642,886.81,884.95,2.78018106]
[1764729596595,0.71755642,886.8,884.95,2.78018106]
[1764729596893,5.92926329,886.86,885.03,2.78018106]
[1764729597096,0.71760079,886.85,885.03,2.78018106]
[1764729597299,5.92926329,886.86,885.03,2.78018106]
[1764729597499,5.92926329,886.86,885.17,2.78018106]
[1764729599501,5.92926329,886.86,885.18,2.78018106]
[1764729601701,5.92926329,886.86,885.19,2.78018106]
[1764729603204,5.92926329,886.86,885.2,2.78018106]
[1764729603807,5.92926329,886.86,885.21,2.78018106]
[1764729604208,5.92926329,886.86,885.28,2.78018106]
[1764729604905,5.92926329,886.86,885.36,2.78018106]
[1764729605104,0.19621054,887.28,885.36,2.78018106]
[1764729605306,0.8405437,887.62,885.56,2.78018106]
[1764729605509,0.19621497,887.48,885.56,2.78018106]
[1764729605710,0.71771163,887.47,885.55,2.78018106]
[1764729606406,0.71771163,887.47,885.6,2.78018106]
[1764729606606,0.19621497,887.48,885.6,2.78018106]
[1764729606810,0.19621497,887.48,885.71,2.78018106]
[1764729608516,0.19621497,887.48,885.69,2.78018106]
[1764729609513,0.19621497,887.48,885.65,2.78018106]
[1764729609917,0.19621497,887.48,885.67,2.78018106]
[1764729610417,0.19621497,887.48,885.63,2.78018106]
[1764729611016,0.19621497,887.48,885.61,2.78018106]
[1764729611413,0.19621497,887.48,885.58,2.78018106]
[1764729612514,0.19621497,887.48,885.55,2.78018106]
[1764729613317,0.70440276,887.47,885.55,2.78018106]
[1764729613614,0.19621497,887.48,885.44,2.78018106]
[1764729613814,0.70440263,887.47,885.44,2.78018106]
[1764729614014,0.19621497,887.48,885.44,2.78018106]
[1764729614218,0.70440224,887.47,885.44,2.78018106]
[1764729614417,0.19621497,887.48,885.44,2.78018106]
[1764729614612,0.70425691,887.47,885.42,2.78018106]
[1764729614817,0.70425691,887.46,885.42,2.78018106]
[1764729615118,0.70425691,887.45,885.35,2.78018106]
[1764729615314,0.70425691,887.44,885.35,2.78018106]
[1764729615519,0.70425691,887.43,885.34,2.78018106]
[1764729615718,0.70425691,887.42,885.34,2.78018106]
[1764729615914,0.70425691,887.41,885.34,2.78018106]
[1764729616214,0.70425691,887.4,885.26,2.78018106]
[1764729616414,0.70425691,887.39,885.26,2.78018106]
[1764729616618,0.70425691,887.38,885.25,2.78018106]
[1764729616918,0.70425691,887.37,885.25,2.78018106]
[1764729617118,0.70425691,887.36,885.25,2.78018106]
[1764729617418,0.70425691,887.35,885.25,2.78018106]
[1764729617618,0.70425691,887.34,885.25,2.78018106]
[1764729617818,0.70425691,887.33,885.25,2.78018106]
[1764729618016,0.19621497,887.48,885.25,2.78018106]
[1764729618219,0.70401419,887.47,885.25,2.78018106]
[1764729618420,0.70401419,887.46,885.25,2.78018106]
[1764729618620,0.70401419,887.45,885.23,2.78018106]
[1764729618816,0.70401419,887.44,885.23,2.78018106]
[1764729619020,0.70401419,887.43,885.23,2.78018106]
[1764729619218,0.70401419,887.42,885.23,2.78018106]
[1764729619417,0.70401419,887.41,885.23,2.78018106]
[1764729619616,0.70401419,887.4,885.22,2.78018106]
[1764729619820,0.70401419,887.39,885.22,2.78018106]
[1764729620018,0.70401419,887.38,885.22,2.78018106]
[1764729620217,0.70401419,887.37,885.22,2.78018106]
[1764729620418,0.70401419,887.36,885.22,2.78018106]
[1764729620619,0.70401419,887.35,885.21,2.78018106]
[1764729620824,0.70401419,887.34,885.21,2.78018106]
[1764729621123,0.70401419,887.33,885.21,2.78018106]
[1764729621324,0.19621497,887.48,885.21,2.78018106]
[1764729621623,0.70362911,887.47,885.21,2.78018106]
[1764729621820,0.70362911,887.46,885.21,2.78018106]
[1764729622024,0.70362911,887.45,885.21,2.78018106]
[1764729622220,0.70362911,887.44,885.2,2.78018106]
[1764729622421,0.70362911,887.43,885.2,2.78018106]
[1764729622621,0.70362911,887.42,885.2,2.78018106]
[1764729622824,0.70362911,887.41,885.2,2.78018106]
[1764729623022,0.70362911,887.4,885.2,2.78018106]
[1764729623224,0.70362911,887.39,885.2,2.78018106]
[1764729623424,0.70362911,887.38,885.19,2.78018106]
[1764729623623,0.70362911,887.37,885.19,2.78018106]
[1764729623825,0.70362911,887.36,885.19,2.78018106]
[1764729624023,0.70362911,887.35,885.19,2.78018106]
[1764729624226,0.70362911,887.34,885.19,2.78018106]
[1764729624424,0.19621497,887.48,885.19,2.78018106]
[1764729624627,0.7016272,887.47,885.06,2.78018106]
[1764729624922,0.7016272,887.46,885.06,2.78018106]
[1764729625123,0.7016272,887.45,885.06,2.78018106]
[1764729625323,0.7016272,887.44,885.06,2.78018106]
[1764729625623,0.7016272,887.43,885.06,2.78018106]
[1764729625827,0.7016272,887.42,885.06,2.78018106]
[1764729626026,0.7016272,887.41,885.06,2.78018106]
[1764729626326,0.7016272,887.4,885.13,2.78018106]
[1764729626524,0.7016272,887.39,885.13,2.78018106]
[1764729626821,0.7016272,887.38,885.12,2.78018106]
[1764729627026,0.7016272,887.37,885.12,2.78018106]
[1764729627225,0.7016272,887.36,885.13,2.78018106]
[1764729627424,0.7016272,887.35,885.13,2.78018106]
[1764729627624,0.7016272,887.34,885.13,2.78018106]
[1764729627828,0.7016272,887.33,885.12,2.78018106]
[1764729628029,0.7016272,887.32,885.12,2.78018106]
[1764729628326,0.7016272,887.31,885.12,2.78018106]
[1764729628525,0.7016272,887.3,885.12,2.78018106]
[1764729628729,0.19621497,887.48,885.12,2.78018106]
[1764729628730,0.7016272,887.29,885.12,2.78018106]
[1764729628926,0.7016272,887.28,885.12,2.78018106]
[1764729629126,0.7016272,887.27,885.12,2.78018106]
[1764729629326,0.7016272,887.26,885.12,2.78018106]
[1764729629530,0.19621497,887.48,885.12,2.78018106]
[1764729629730,0.70180666,887.47,885.12,2.78018106]
[1764729629927,1.54235036,887.46,885.04,2.78018106]
[1764729630130,0.70180666,887.45,885.04,2.78018106]
[1764729630334,0.70180666,887.45,885.05,2.78018106]
[1764729632434,0.70180666,887.45,885.06,2.78018106]
[1764729633534,0.70180666,887.45,885.08,2.78018106]
[1764729634435,0.70180666,887.45,885.09,2.78018106]
[1764729635037,0.70180666,887.44,885.14,2.78018106]
[1764729635238,0.70180666,887.43,885.14,2.78018106]
[1764729635436,0.70180666,887.42,885.14,2.78018106]
[1764729635741,0.70180666,887.41,885.15,2.78018106]
[1764729636034,0.70180666,887.4,885.15,2.78018106]
[1764729636238,0.70180666,887.39,885.15,2.78018106]
[1764729636437,0.70180666,887.38,885.15,2.78018106]
[1764729636735,0.70180666,887.37,885.16,2.78018106]
[1764729636936,0.70180666,887.36,885.16,2.78018106]
[1764729637133,0.70180666,887.35,885.16,2.78018106]
[1764729637338,0.19621497,887.48,885.16,2.78018106]
[1764729637635,0.70261873,887.47,885.22,2.78018106]
[1764729637835,0.70261873,887.46,885.22,2.78018106]
[1764729638133,0.70261873,887.45,885.29,2.78018106]
[1764729638340,0.70261873,887.44,885.29,2.78018106]
[1764729638635,0.70261873,887.43,885.29,2.78018106]
[1764729638839,0.70261873,887.42,885.3,2.78018106]
[1764729639036,0.70261873,887.41,885.3,2.78018106]
[1764729639240,0.70261873,887.4,885.32,2.78018106]
[1764729639536,0.70261873,887.39,885.32,2.78018106]
[1764729639739,0.70261873,887.38,885.32,2.78018106]
[1764729639938,0.70261873,887.37,885.32,2.78018106]
[1764729640139,0.19621497,887.48,885.32,2.78018106]
[1764729640140,0.70261873,887.36,885.32,2.78018106]
[1764729640341,0.70261873,887.35,885.33,2.78018106]
[1764729640636,0.70261873,887.34,885.33,2.78018106]
[1764729640842,0.70261873,887.33,885.33,2.78018106]
[1764729641041,0.70261873,887.32,885.33,2.78018106]
[1764729641237,0.70261873,887.31,885.35,2.78018106]
[1764729641541,0.19621497,887.48,885.35,2.78018106]
[1764729641852,0.70317362,887.47,885.35,2.78018106]
[1764729642042,0.70317362,887.46,885.35,2.78018106]
[1764729642341,0.70317362,887.45,885.37,2.78018106]
[1764729642541,0.70317362,887.44,885.37,2.78018106]
[1764729642839,0.70317362,887.43,885.37,2.78018106]
[1764729643037,0.70317362,887.42,885.37,2.78018106]
[1764729643241,0.70317362,887.41,885.37,2.78018106]
[1764729643438,0.19621497,887.48,885.05,3.89225349]
[1764729643439,0.70317362,887.4,885.4,2.78018106]
[1764729643636,0.70317362,887.39,885.4,2.78018106]
[1764729643841,0.70317362,887.38,885.4,2.78018106]
[1764729644138,0.70317362,887.37,885.4,2.78018106]
[1764729644342,0.70317362,887.36,885.44,2.78018106]
[1764729644543,0.70317362,887.35,885.44,2.78018106]
[1764729644742,0.70317362,887.34,885.44,2.78018106]
[1764729644939,0.70317362,887.33,885.44,2.78018106]
[1764729645144,0.19621497,887.48,885.44,2.78018106]
[1764729645444,0.70400466,887.47,885.47,2.78018106]
[1764729645642,0.70400466,887.46,885.47,2.78018106]
[1764729645842,0.70400466,887.45,885.47,2.78018106]
[1764729646041,0.70400466,887.44,885.47,2.78018106]
[1764729646345,0.70400466,887.43,885.47,2.78018106]
[1764729646545,0.19621497,887.48,885.15,3.89225349]
[1764729646546,0.70400466,887.42,885.52,2.78018106]
[1764729646845,0.70400466,887.41,885.52,2.78018106]
[1764729647045,0.70400466,887.4,885.51,2.78018106]
[1764729647245,0.70400466,887.39,885.51,2.78018106]
[1764729647445,0.70400466,887.38,885.53,2.78018106]
[1764729647646,0.70400466,887.37,885.53,2.78018106]
[1764729647843,0.70400466,887.36,885.53,2.78018106]
[1764729648045,0.70400466,887.35,885.53,2.78018106]
[1764729648243,0.70400466,887.34,885.53,2.78018106]
[1764729648448,0.70400466,887.33,885.53,2.78018106]
[1764729648744,0.70400466,887.32,885.54,2.78018106]
[1764729648948,0.70400466,887.31,885.54,2.78018106]
[1764729649148,0.70400466,887.3,885.54,2.78018106]
[1764729649347,0.70400466,887.29,885.54,2.78018106]
[1764729649549,0.70400466,887.28,885.55,2.78018106]
[1764729649849,0.19621497,887.48,885.55,2.78018106]
[1764729650045,0.70507214,887.47,885.55,2.78018106]
[1764729650249,0.70507214,887.46,885.55,2.78018106]
[1764729650445,0.70507214,887.45,885.55,2.78018106]
[1764729650653,0.70507214,887.44,885.55,2.78018106]
[1764729650850,0.70507214,887.43,885.55,2.78018106]
[1764729651050,0.70507214,887.42,885.55,2.78018106]
[1764729651348,0.70507214,887.41,885.55,2.78018106]
[1764729651545,0.70507214,887.4,885.56,2.78018106]
[1764729651846,0.70507214,887.39,885.56,2.78018106]
[1764729652046,0.70507214,887.38,885.56,2.78018106]
[1764729652251,0.70507214,887.37,885.57,2.78018106]